[Event "50th La Roda Open 2024"]
[Site "La Roda"]
[Date "2024.03.28"]
[Round "2.11"]
[White "Admiraal, Miguoel"]
[Black "Jarque Megias, Juan Jose"]
[Result "1/2-1/2"]
[ECO "D00"]
[WhiteElo "2471"]
[BlackElo "2048"]
[Annotator "TA"]
[PlyCount "56"]
[EventDate "2024.03.27"]
[EventType "swiss"]
[EventCountry "ESP"]
[SourceTitle "playchess.com"]
[Source "ChessBase"]
[SourceQuality "1"]
[TimeControl "5400+30"]

{[%evp 9,56,-6,-8,-10,-19,-33,29,29,63,57,57,64,54,64,64,63,107,83,93,80,221,221,225,179,194,147,213,142,140,160,157,159,264,264,273,237,243,248,229,87,111,101,97,0,0,0,94,0,0]} 1. d4 {[%emt 0:00:03]} d5 {[%emt 0:01:35]} 2. Nc3 {[%emt 0:00:24]} Nf6 {[%emt 0:00:46]} 3. Bf4 {[%emt 0:00:06]} a6 {[%emt 0:00:21]} 4. e3 {[%emt 0:00:05]} e6 {[%emt 0:00:29]} 5. g4 {[%emt 0:00:35][%cal Bg2g4,Bg4g5][%mdl 32]} Bb4 {[%emt 0:03:53]} 6. Nge2 {[%emt 0:00:05]} O-O {[%emt 0:00:33]} 7. a3 {[%emt 0:00:30]} Bd6 {[%emt 0:00:45]} (7... Be7 $15) 8. g5 $11 {[%emt 0:03:55] White has an edge.} Nfd7 {[%emt 0:01:26]} 9. h4 {[%emt 0:06:29]} Re8 {[%emt 0:15:51]} 10. Bxd6 {[%emt 0:06:56]} cxd6 {[%emt 0:00:43]} 11. Nf4 {[%emt 0:03:42]} Nc6 {[%emt 0:04:44]} 12. Rg1 {[%emt 0:06:11]} e5 {[%emt 0:02:41]} 13. dxe5 {[%emt 0:21:57][%cal Bd4e5,Be5e6,Be6f7][%mdl 32]} (13. Nfxd5 $2 exd4 14. Qd2 Nde5 $19 (14... dxc3 $2 15. Nxc3 Nb6 16. O-O-O $19)) 13... d4 {[%emt 0:00:08]} 14. e6 $1 $36 {[%emt 0:01:19][%mdl 2048] White is on the roll.} (14. exd4 $2 dxe5 15. dxe5 Ndxe5 $19) 14... Nde5 {[%emt 0:07:57]} (14... fxe6 $16 15. exd4 Qb6) 15. exf7+ $1 $18 {[%emt 0:02:43]} (15. exd4 Nxd4 16. exf7+ Nxf7+ 17. Kd2 Ne5 $11) 15... Nxf7 {[%emt 0:00:07]} 16. Ncd5 {[%emt 0:00:30]} dxe3 {[%emt 0:00:56]} 17. fxe3 {[%emt 0:02:07]} (17. Nxe3 $6 Re4 18. Ne2 (18. Qf3 Qa5+ 19. c3 Qf5 $15) 18... Qb6 $16) (17. Bd3 $1 $18 {[%cal Rd3h7]} Nce5 18. Bxh7+ (18. fxe3 Nxd3+ 19. Qxd3 Ne5 $16) (18. Nxe3 Qa5+ 19. c3 Nxd3+ 20. Nxd3 Bf5 $14) 18... Kxh7 19. g6+ Kg8 (19... Kh8 $2 20. gxf7 exf2+ 21. Kd2 $18) 20. gxf7+ Nxf7 21. Nxe3 (21. fxe3 Qxh4+ 22. Kd2 Bf5 $14) (21. Qh5 Re5 $11)) 17... Nce5 {[%emt 0:00:18]} (17... Bf5 $16 18. Qd2 Rc8) 18. Bd3 {[%emt 0:04:01]} Nxd3+ {[%emt 0:06:28]} 19. cxd3 {[%emt 0:00:16]} (19. Nxd3 Qa5+ 20. N3b4 Qc5 $11) 19... Be6 {[%emt 0:01:49]} 20. Qb3 {[%emt 0:21:57][%cal Of4e6] White has more active pieces.} Rc8 {[%emt 0:14:29]} (20... Bxd5 $16 {keeps fighting.} 21. Nxd5 Qc8) 21. Nxe6 $1 {[%emt 0:00:35]} (21. Qxb7 Bxd5 22. Nxd5 (22. Qxd5 $2 Qb6 $19) 22... Rb8 23. Qxa6 Rxb2 $11) 21... Rxe6 {[%emt 0:01:44] [#]} 22. Nf6+ $1 {[%emt 0:02:38][%mdl 512]} Rxf6 {[%emt 0:00:05]} 23. gxf6 {[%emt 0:00:02]} Qxf6 {[%emt 0:00:05]} 24. Ke2 {[%emt 0:02:29]} (24. Qxb7 $18 {and White stays clearly on top.} Qxh4+ 25. Kd1 Qa4+ 26. b3) 24... Qxh4 $16 {[%emt 0:01:53]} 25. Raf1 {[%emt 0:00:10]} ({Much worse is} 25. Qxb7 $6 Qh2+ 26. Kf1 Rf8 $11) 25... Qh5+ {[%emt 0:00:25] [#]} 26. Ke1 {[%emt 0:05:04] Chess con chili.} (26. Rf3 $1 $16 {[%cal Og1g5] Rg5! is the strong threat.} Qh2+ 27. Rf2 Qh5+ (27... Qxg1 28. Qxf7+ Kh8 29. Qf8+ Rxf8 30. Rxf8#) 28. Kd2 Qa5+ 29. Kd1 Qh5+ 30. Re2) 26... Qh4+ $11 {[%emt 0:01:22]} 27. Ke2 {[%emt 0:01:19]} ({Better is} 27. Kd1 $11 Qh5+ 28. Ke1) 27... Qh5+ $1 $16 {[%emt 0:00:05] [#]} 28. Ke1 {[%emt 0:04:06]} (28. Rf3 $1 $16 {[%cal Og1g5] Hoping for Rg5!} Qh2+ 29. Rf2 Qh5+ (29... Qxg1 30. Qxf7+ Kh8 31. Qf8+ Rxf8 32. Rxf8#) 30. Kd2 Qa5+ 31. Ke2 Qh5+ 32. Kd2 Qa5+ 33. Kd1 Qh5+ 34. Re2) 28... Qh4+ {[%emt 0:00:05] Weighted Error Value: White=0.27 (precise) /Black=0.24 (precise) .  Mistake:       	White=5     	Black=4      Inaccurate:     	White=1     	Black=2      OK:         	White=4     	Black=8      Best:        	---       	Black=3      Strong:       	White=3     	Black=1} 1/2-1/2

[Event "50th La Roda Open 2024"]
[Site "La Roda"]
[Date "2024.03.28"]
[Round "2.12"]
[White "Fernandez Cano, Victor"]
[Black "Martinez Ramirez, Lennis"]
[Result "0-1"]
[ECO "D00"]
[WhiteElo "1995"]
[BlackElo "2450"]
[Annotator "TA"]
[PlyCount "102"]
[EventDate "2024.03.27"]
[EventType "swiss"]
[EventCountry "ESP"]
[SourceTitle "playchess.com"]
[Source "ChessBase"]
[SourceQuality "1"]
[TimeControl "5400+30"]

{[%evp 9,102,0,12,6,4,-35,-24,-51,-40,-35,-13,-29,-14,-33,-40,-37,-16,-14,63,10,36,12,15,11,19,7,33,-81,-88,-83,-79,-83,-81,-85,-76,-87,-89,-125,-116,-124,-115,-139,-145,-280,-275,-279,-270,-300,-300,-300,-287,-279,-256,-301,-314,-315,-314,-311,-302,-382,-363,-363,-384,-398,-402,-406,-397,-516,-518,-509,-508,-481,-485,-580,-582,-717,-736,-698,-705,-763,-683,-744,-742,-754,-750,-741,-723,-716,-668,-29956,-12851,-6197,-6187,-5310,-5105]} 1. d4 {[%emt 0:00:05]} Nf6 {[%emt 0:00:16]} 2. Nf3 {[%emt 0:00:08]} g6 {[%emt 0:00:34]} 3. Nc3 {[%emt 0:01:24]} d5 {[%emt 0:01:14]} 4. Bf4 {[%emt 0:00:57]} Bg7 {[%emt 0:02:19]} 5. Nb5 {[%emt 0:00:37]} Na6 {[%emt 0:00:13]} 6. e3 {[%emt 0:00:06]} Nh5 {[%emt 0:02:31]} 7. Be5 {[%emt 0:01:53]} f6 {[%emt 0:00:16][%cal Oc7c6] [#] aiming for ...c6!} 8. Bg3 {[%emt 0:00:49] Black has an edge.} c6 {[%emt 0:00:36][%cal Oh5g3] White must now prevent ...Nxg3!} 9. Nc3 {[%emt 0:00:20]} Qb6 {[%emt 0:02:51]} 10. Rb1 {[%emt 0:04:56]} e5 {[%emt 0:00:41]} 11. Be2 {[%emt 0:04:36]} Nxg3 {[%emt 0:03:28]} 12. hxg3 {[%emt 0:00:17]} Bg4 {[%emt 0:02:30]} 13. b4 {[%emt 0:17:35][%cal Bb2b4,Bb4b5][%mdl 32]} Bxf3 {[%emt 0:00:54]} (13... Nxb4 $2 14. a3 $18) (13... Qd8 $11) 14. Bxf3 {[%emt 0:06:23]} ({White should try} 14. gxf3 $14 O-O 15. Kf1 (15. Na4 Qd8 $16)) 14... f5 {[%emt 0:00:22][%cal Re5d4]} (14... Nxb4 $2 15. a3 $18) (14... exd4 {simplifies} 15. exd4 O-O 16. O-O Qd8) 15. b5 {[%emt 0:08:05]} Qa5 {[%emt 0:00:49]} 16. Qd2 {[%emt 0:04:30]} Nc7 {[%emt 0:02:10][%cal Ba6c7,Bc7e6,Be6d4][%mdl 32]} 17. bxc6 {[%emt 0:17:21]} bxc6 {[%emt 0:00:07]} 18. Rb7 {[%emt 0:00:25] [#]} (18. dxe5 $14 {stays ahead.} Bxe5 19. Ne2 Qxa2 20. O-O) 18... O-O-O $1 $17 {[%emt 0:07:26] White is now going downhill.} 19. Rb3 {[%emt 0:02:25]} exd4 {[%emt 0:01:33]} 20. exd4 {[%emt 0:01:12]} Ne6 {[%emt 0:00:24]} 21. Ne2 {[%emt 0:13:29]} Qxd2+ {[%emt 0:00:07]} (21... Qxa2 $2 {too greedy.} 22. O-O $18) 22. Kxd2 {[%emt 0:00:03]} Nxd4 {[%emt 0:00:02]} 23. Ra3 {[%emt 0:01:00]} Nb5 $36 {[%emt 0:00:08][%mdl 2048] Black is on the roll.} 24. Rb3 {[%emt 0:00:44]} h5 {[%emt 0:03:24]} 25. Rhb1 {[%emt 0:01:20]} g5 {[%emt 0:03:22] ...g4 is the strong threat. Black is more active.} 26. a4 {[%emt 0:01:30]} (26. Rxb5 $17 {was called for.} cxb5 27. Rxb5) 26... Nd6 $19 {[%emt 0:00:08]} 27. Rb8+ {[%emt 0:05:04]} Kc7 {[%emt 0:00:12]} 28. Rxd8 {[%emt 0:00:11]} Rxd8 {[%emt 0:00:08]} (28... Kxd8 29. Rb8+ Nc8 30. Rb7 $17) 29. Bxh5 {[%emt 0:00:56]} Rh8 {[%emt 0:03:28]} 30. g4 {[%emt 0:01:04]} Ne4+ {[%emt 0:00:08]} 31. Ke3 {[%emt 0:03:44]} f4+ {[%emt 0:01:29]} 32. Kd3 {[%emt 0:00:05]} Nxf2+ {[%emt 0:00:57]} 33. Kd2 {[%emt 0:00:02]} Ne4+ {[%emt 0:00:14]} 34. Kd3 {[%emt 0:00:42]} Nc5+ {[%emt 0:01:08]} 35. Kd2 {[%emt 0:00:22]} Nxa4 {[%emt 0:00:04]} 36. c3 {[%emt 0:00:42]} Nc5 {[%emt 0:00:02]} 37. Kc2 {[%emt 0:00:53]} a5 {[%emt 0:00:10]} 38. Nd4 {[%emt 0:00:35]} Bxd4 {[%emt 0:00:14]} 39. cxd4 {[%emt 0:00:05][%mdl 4096] Endgame. KRB-KRN} Ne6 {[%emt 0:02:18]} 40. Kc3 {[%emt 0:00:06]} Rf8 {[%emt 0:00:16] Prevents Bf7} 41. Rf1 {[%emt 0:02:27]} a4 {[%emt 0:00:16]} 42. Bg6 {[%emt 0:00:10]} Rb8 {[%emt 0:01:10]} 43. Bc2 {[%emt 0:00:28]} a3 {[%emt 0:00:08]} 44. Bf5 {[%emt 0:00:35]} Ng7 {[%emt 0:00:47]} 45. Bc2 {[%emt 0:00:26]} Ne8 {[%emt 0:00:08]} 46. Ra1 {[%emt 0:00:32]} Nd6 {[%emt 0:00:06]} 47. Bd3 {[%emt 0:00:13]} Ra8 {[%emt 0:00:55]} 48. Kb3 {[%emt 0:01:12]} Ne4 {[%emt 0:00:42]} 49. Rxa3 {[%emt 0:00:52]} Nd2+ {[%emt 0:00:09]} 50. Kb2 {[%emt 0:00:34]} Rxa3 {[%emt 0:00:08]} 51. Kxa3 {[%emt 0:00:03]} f3 {[%emt 0:00:07] Weighted Error Value: White=0.33/Black=0.10 (very precise) .  Mistake:       	White=3     	Black=1      Inaccurate:     	White=2     	Black=2      OK:         	White=10    	Black=16     Best:        	White=3     	Black=7      Strong:       	---       	Black=1} 0-1

[Event "50th La Roda Open 2024"]
[Site "La Roda"]
[Date "2024.03.28"]
[Round "2.13"]
[White "Sanchez Alvarez, Roberto Carlos"]
[Black "Collado Alcolado, Angel"]
[Result "1/2-1/2"]
[ECO "D06"]
[WhiteElo "2407"]
[BlackElo "2039"]
[Annotator "TA"]
[PlyCount "53"]
[EventDate "2024.03.27"]
[EventType "swiss"]
[EventCountry "ESP"]
[SourceTitle "playchess.com"]
[Source "ChessBase"]
[SourceQuality "1"]
[TimeControl "5400+30"]

{[%evp 9,53,37,29,35,45,39,44,13,25,0,241,231,234,-47,-46,-90,0,-54,-42,-94,-94,-111,-95,-100,-89,-96,-78,-113,-75,-66,-34,-110,-81,-129,-24,-27,0,0,0,0,467,456,476,483,29997,29998]} 1. d4 {[%emt 0:04:32]} d5 {[%emt 0:00:04]} 2. c4 {[%emt 0:00:10]} c5 {[%emt 0:00:04]} 3. cxd5 {[%emt 0:02:05]} Qxd5 {[%emt 0:00:04]} 4. Nf3 {[%emt 0:01:51][%cal Bg1f3,Bf3d4,Bd4b5,Bb5d6][%mdl 32]} cxd4 {[%emt 0:00:04]} 5. Nc3 {[%emt 0:00:15]} Qa5 {[%emt 0:00:02]} 6. Nxd4 {[%emt 0:00:14]} Nf6 {[%emt 0:00:07] Wards off e4} 7. a3 {[%emt 0:01:34]} e5 {[%emt 0:01:47]} 8. Ndb5 {[%emt 0:06:24] White is slightly better.} Bd7 {[%emt 0:13:16]} 9. e4 {[%emt 0:11:29]} Bc5 $2 {[%emt 0:27:58]} (9... a6 $11 10. Nd6+ Bxd6 11. Qxd6 Nxe4) 10. b4 $1 $18 {[%emt 0:11:16]} Bxb4 {[%emt 0:10:19]} 11. axb4 {[%emt 0:00:18]} ({Only move:} 11. Bd2 $1 $18 Bc5 12. Nd5) 11... Qxa1 $15 {[%emt 0:01:16]} 12. Nd6+ {[%emt 0:28:19]} Kf8 {[%emt 0:02:40]} (12... Ke7 {is more complex.} 13. Nd5+ Kxd6 14. Nxf6+ Qd4) 13. Qd2 {[%emt 0:02:01][%cal Of1c4]} Nc6 {[%emt 0:04:01] Hoping for ...Nd4.} 14. Bc4 {[%emt 0:01:10]} (14. f4 $1 $15) 14... Be6 $17 {[%emt 0:03:52]} (14... Nxb4 15. O-O Qa5 16. Nxf7 $16 (16. Nxb7 Qb6 $17)) 15. O-O {[%emt 0:08:12] Bb2 would now be deadly.} Bxc4 {[%emt 0:01:40]} (15... Nxb4 $2 16. Nf5 Bxf5 (16... Bxc4 17. Qd6+ Kg8 18. Ne7+ Kf8 19. Nc8+ Kg8 20. Qd8+) 17. Qd6+ Kg8 18. Qxb4 $18) 16. Nxc4 {[%emt 0:00:51]} Rd8 {[%emt 0:01:29]} (16... Nxb4 $2 17. Ba3 $18 (17. Nxe5 Kg8 $17) (17. Nxe5 Kg8 $17)) 17. Qe3 {[%emt 0:00:53] [#]} Nd4 $1 {[%emt 0:01:26][%cal Oa1c3] Threatens to win with ...Qxc3!} (17... Nxb4 $2 18. Ba3 $18 (18. Nxe5 Nd3 $17) (18. Qc5+ Kg8 $18) (18. Nxe5 Qa5 $17) (18. Qc5+ Kg8 $18)) 18. Bb2 {[%emt 0:02:20]} (18. Nxe5 $2 {perishes.} Qxc3 19. h3 (19. Nd7+ $2 Rxd7 20. f3 Qxe3+ 21. Bxe3 Ke7 $19) 19... Qxe3 (19... Qxb4 $2 20. Ba3 $18) 20. Bxe3 Nxe4 $19) 18... Qa6 {[%emt 0:01:30]} 19. Nxe5 {[%emt 0:00:10]} Qe6 {[%emt 0:12:20]} 20. f4 {[%emt 0:10:15]} ({White should play} 20. Nd3 $1 $15) 20... Qb3 {[%emt 0:02:53]} 21. Ba1 {[%emt 0:04:21]} (21. Rd1 $142 Qxb2 22. Rxd4 Qa1+ (22... Rxd4 23. Qxd4 Qc1+ 24. Kf2 $11) 23. Kf2) 21... b6 {[%emt 0:05:36]} (21... Qxb4 $17 {...Qc5 is the strong threat.} 22. Rb1 Qa5) 22. Rd1 {[%emt 0:00:48]} Ne6 {[%emt 0:04:49]} 23. Rxd8+ {[%emt 0:00:54]} Nxd8 {[%emt 0:00:01]} 24. Qd4 {[%emt 0:00:33]} Nb7 {[%emt 0:05:12][%mdl 8192] [#]} (24... Ne6 $11 {and Black stays safe.} 25. Qd6+ Kg8) 25. Nd7+ $1 $18 {[%emt 0:02:05]} Nxd7 26. Qxd7 {And now Qc8+ would win.} Qc2 {[%emt 0:01:00]} (26... Qe6 $18 27. Qxb7 h5) 27. Qc8+ {[%emt 0:01:00][%mdl 32768] Weighted Error Value: White=0.25 (precise) /Black=0.86.  Loses game:     	---       	Black=2      Missed win:     	White=1     	---        Mistake:       	White=3     	Black=2      Inaccurate:     	White=3     	Black=3      OK:         	White=5     	Black=5      Best:        	White=2     	Black=4      Strong:       	White=2     	Black=1     . An unexpected result.} 1/2-1/2

[Event "50th La Roda Open 2024"]
[Site "La Roda"]
[Date "2024.03.28"]
[Round "2.14"]
[White "Macias Sanchez, Homero"]
[Black "Cruz Lledo, Pablo"]
[Result "0-1"]
[ECO "B11"]
[WhiteElo "1988"]
[BlackElo "2353"]
[Annotator "RC"]
[PlyCount "68"]
[EventDate "2024.03.27"]
[EventType "swiss"]
[EventCountry "ESP"]
[SourceTitle "playchess.com"]
[Source "ChessBase"]
[SourceQuality "1"]
[TimeControl "5400+30"]

1. e4 {[%emt 0:01:43]} c6 {[%emt 0:00:54]} 2. Nc3 {[%emt 0:00:58]} d5 {[%emt 0:00:07]} 3. Nf3 {[%emt 0:00:24]} dxe4 {[%emt 0:00:24]} 4. Nxe4 {[%emt 0:00:12]} Nf6 {[%emt 0:00:06]} 5. Qe2 {[%emt 0:00:08]} Qd5 {[%emt 0:03:56]} 6. Nxf6+ {[%emt 0:02:14]} gxf6 {[%emt 0:00:08]} 7. g3 {[%emt 0:01:38]} Bg4 {[%emt 0:02:03]} 8. Bg2 {[%emt 0:00:15]} Nd7 {[%emt 0:01:00]} 9. h3 {[%emt 0:00:46]} Bh5 {[%emt 0:00:52]} 10. d4 {[%emt 0:14:01]} Bg7 {[%emt 0:13:38]} 11. O-O {[%emt 0:03:43]} Bxf3 {[%emt 0:13:42]} 12. Bxf3 {[%emt 0:00:06]} Qxd4 {[%emt 0:00:04]} 13. Be3 {[%emt 0:00:06]} Qe5 {[%emt 0:02:27]} 14. Rfd1 {[%emt 0:02:50]} Qe6 {[%emt 0:01:55]} 15. Bg2 {[%emt 0:01:15]} O-O {[%emt 0:01:56]} 16. Rd2 {[%emt 1:08:11]} Ne5 {[%emt 0:01:19]} 17. b3 {[%emt 0:00:00]} a5 {[%emt 0:04:32]} 18. a4 {[%emt 0:00:00]} Rfd8 {[%emt 0:09:33]} 19. Bb6 {[%emt 0:00:00]} Rxd2 {[%emt 0:00:51]} 20. Qxd2 {[%emt 0:00:00]} Qf5 {[%emt 0:04:59]} 21. f4 {[%emt 0:00:00]} Ng6 {[%emt 0:03:59]} 22. Re1 {[%emt 0:00:00]} h5 {[%emt 0:08:09]} 23. Kh2 {[%emt 0:00:00]} h4 {[%emt 0:01:31]} 24. g4 {[%emt 0:00:00]} Qc8 {[%emt 0:01:03]} 25. Be4 {[%emt 0:00:00]} e5 {[%emt 0:01:20]} 26. Qf2 {[%emt 0:00:00]} exf4 {[%emt 0:01:37]} 27. Bxg6 {[%emt 0:00:00]} fxg6 {[%emt 0:00:24]} 28. Qxf4 {[%emt 0:00:00]} Qd7 {[%emt 0:00:53]} 29. Re2 {[%emt 0:00:00]} Re8 {[%emt 0:01:56]} 30. Rd2 {[%emt 0:00:00]} Qe7 {[%emt 0:01:14]} 31. Bxa5 {[%emt 0:00:00]} f5 {[%emt 0:00:15]} 32. Bc7 {[%emt 0:00:00]} g5 {[%emt 0:04:22]} 33. Qc4+ {[%emt 0:00:00]} Kh8 {[%emt 0:00:16]} 34. Bd6 {[%emt 0:00:00]} Be5+ {[%emt 0:00:21]} 0-1

[Event "50th La Roda Open 2024"]
[Site "La Roda"]
[Date "2024.03.28"]
[Round "2.15"]
[White "Martinez Reyes, Pedro Ramon"]
[Black "Arroyo Rodriguez, Jesus"]
[Result "1-0"]
[ECO "B22"]
[WhiteElo "2332"]
[BlackElo "2027"]
[Annotator "RC"]
[PlyCount "75"]
[EventDate "2024.03.27"]
[EventType "swiss"]
[EventCountry "ESP"]
[SourceTitle "playchess.com"]
[Source "ChessBase"]
[SourceQuality "1"]
[TimeControl "5400+30"]

1. e4 {[%emt 0:06:55]} c5 {[%emt 0:00:29]} 2. c3 {[%emt 0:00:06]} Nf6 {[%emt 0:00:10]} 3. e5 {[%emt 0:00:04]} Nd5 {[%emt 0:00:09]} 4. Bc4 {[%emt 0:00:02]} Nb6 {[%emt 0:01:01]} 5. Bb3 {[%emt 0:00:05]} c4 {[%emt 0:00:38]} 6. Bc2 {[%emt 0:00:04]} Nc6 {[%emt 0:01:03]} 7. Nf3 {[%emt 0:00:07]} Qc7 {[%emt 0:00:36]} 8. Qe2 {[%emt 0:00:04]} e6 {[%emt 0:01:56]} 9. b3 {[%emt 0:05:05]} cxb3 {[%emt 0:05:39]} 10. axb3 {[%emt 0:01:22]} d6 {[%emt 0:00:06]} 11. d4 {[%emt 0:08:24]} dxe5 {[%emt 0:09:03]} 12. dxe5 {[%emt 0:00:36]} Bd7 {[%emt 0:03:31]} 13. O-O {[%emt 0:00:59]} Rc8 {[%emt 0:02:57]} 14. Re1 {[%emt 0:11:14]} h6 {[%emt 0:02:57]} 15. h4 {[%emt 0:03:33]} a6 {[%emt 0:01:36]} 16. h5 {[%emt 0:06:32]} Be7 {[%emt 0:06:31]} 17. Bd3 {[%emt 0:05:30]} Nd5 {[%emt 0:02:07]} 18. Ra4 {[%emt 0:02:17]} Na5 {[%emt 0:02:50]} 19. Rg4 {[%emt 0:01:53]} Nxb3 {[%emt 0:01:39]} 20. Rxg7 {[%emt 0:04:26]} Nxc1 {[%emt 0:03:41]} 21. Rxc1 {[%emt 0:00:28]} Nf4 {[%emt 0:04:03]} 22. Qe4 {[%emt 0:02:56]} Nxd3 {[%emt 0:03:02]} 23. Qxd3 {[%emt 0:00:05]} Qc4 {[%emt 0:01:11]} 24. Qd2 {[%emt 0:06:39]} Qe4 {[%emt 0:18:27]} 25. Rd1 {[%emt 0:15:31]} Ba4 {[%emt 0:02:54]} 26. Re1 {[%emt 0:02:49]} Qf5 {[%emt 0:01:42]} 27. Qb2 {[%emt 0:00:12]} Rc7 {[%emt 0:05:23]} 28. Qb6 {[%emt 0:05:36]} Rd7 {[%emt 0:00:42]} 29. Nd4 {[%emt 0:00:50]} Qxh5 {[%emt 0:01:10]} 30. Nd2 {[%emt 0:04:51]} Bg5 {[%emt 0:02:36]} 31. Ne4 {[%emt 0:00:50]} Kf8 {[%emt 0:02:30]} 32. Nf6 {[%emt 0:01:24]} Bxf6 {[%emt 0:01:09]} 33. exf6 {[%emt 0:00:05]} Bb5 {[%emt 0:03:42]} 34. Rxe6 {[%emt 0:02:36]} Qd1+ {[%emt 0:05:31]} 35. Kh2 {[%emt 0:00:04]} fxe6 {[%emt 0:02:04]} 36. Nxe6+ {[%emt 0:00:11]} Ke8 {[%emt 0:00:09]} 37. Qd8+ {[%emt 0:00:05]} Rxd8 {[%emt 0:00:17]} 38. Re7# {[%emt 0:00:37]} 1-0

[Event "50th La Roda Open 2024"]
[Site "La Roda"]
[Date "2024.03.28"]
[Round "2.16"]
[White "Sanchez Carrasco, Francisco Javier"]
[Black "Buendia Pinar, Alvaro"]
[Result "0-1"]
[ECO "A17"]
[WhiteElo "1981"]
[BlackElo "2331"]
[Annotator "RC"]
[PlyCount "62"]
[EventDate "2024.03.27"]
[EventType "swiss"]
[EventCountry "ESP"]
[SourceTitle "playchess.com"]
[Source "ChessBase"]
[SourceQuality "1"]
[TimeControl "5400+30"]

1. c4 {[%emt 0:01:48]} e6 {[%emt 0:06:12]} 2. Nc3 {[%emt 0:00:31]} d5 {[%emt 0:00:15]} 3. e3 {[%emt 0:00:29]} Nf6 {[%emt 0:00:37]} 4. Nf3 {[%emt 0:00:10]} a6 {[%emt 0:01:08]} 5. b3 {[%emt 0:01:54]} c5 {[%emt 0:00:52]} 6. d4 {[%emt 0:00:14]} cxd4 {[%emt 0:01:07]} 7. exd4 {[%emt 0:00:35]} Bb4 {[%emt 0:00:15]} 8. Bd2 {[%emt 0:00:20]} dxc4 {[%emt 0:02:56]} 9. bxc4 {[%emt 0:01:07]} Nc6 {[%emt 0:00:22]} 10. Qb3 {[%emt 0:01:56]} Ba5 {[%emt 0:06:03]} 11. Qa3 {[%emt 0:16:37]} Bb4 {[%emt 0:05:36]} 12. Qb2 {[%emt 0:05:08]} O-O {[%emt 0:02:14]} 13. Ne4 {[%emt 0:10:47]} Bxd2+ {[%emt 0:20:06]} 14. Nexd2 {[%emt 0:00:14]} Qa5 {[%emt 0:00:01]} 15. Be2 {[%emt 0:03:11]} Ne4 {[%emt 0:13:07]} 16. O-O {[%emt 0:16:50]} Nxd2 {[%emt 0:00:21]} 17. Nxd2 {[%emt 0:00:15]} Rd8 {[%emt 0:00:24]} 18. Nb3 {[%emt 0:05:26]} Qg5 {[%emt 0:01:04]} 19. f4 {[%emt 0:06:43]} Qf6 {[%emt 0:00:12]} 20. Rad1 {[%emt 0:00:16]} Bd7 {[%emt 0:01:40]} 21. Nc5 {[%emt 0:01:37]} Be8 {[%emt 0:00:59]} 22. Ne4 {[%emt 0:00:23]} Qf5 {[%emt 0:02:24]} 23. Ng3 {[%emt 0:00:59]} Qa5 {[%emt 0:01:09]} 24. f5 {[%emt 0:02:53]} Nxd4 {[%emt 0:04:57]} 25. fxe6 {[%emt 0:02:23]} Qe5 {[%emt 0:04:36]} 26. exf7+ {[%emt 0:01:12]} Bxf7 {[%emt 0:00:55]} 27. Qxb7 {[%emt 0:01:39]} Nxe2+ {[%emt 0:01:19]} 28. Nxe2 {[%emt 0:01:07]} Bxc4 {[%emt 0:01:31]} 29. Rde1 {[%emt 0:06:06]} Bxe2 {[%emt 0:05:08]} 30. Rf2 {[%emt 0:04:14]} Bc4 {[%emt 0:01:16]} 31. Qb4 {[%emt 0:01:05]} Qd4 {[%emt 0:00:52]} 0-1